bitfinex-derivatives/quotes_ETHF0:USTF0_20250411
["timestamp","ask_amount","ask_price","bid_price","bid_amount"]
[1744343751909,6.51339,1545.1,1545.0,9.99e-06]
[1744343753819,7.16139,1545.1,1545.0,9.99e-06]
[1744343754011,6.51339,1545.1,1545.0,9.99e-06]
[1744343755114,7.16139,1545.1,1545.0,9.99e-06]
[1744343755416,6.51339,1545.1,1545.0,9.99e-06]
[1744343756022,7.16139,1545.1,1545.0,9.99e-06]
[1744343756212,6.51339,1545.1,1545.0,9.99e-06]
[1744343756406,7.16139,1545.1,1545.0,9.99e-06]
[1744343756616,6.51339,1545.1,1545.0,9.99e-06]
[1744343756816,7.16139,1545.1,1545.0,9.99e-06]
[1744343757415,6.51339,1545.1,1545.0,9.99e-06]
[1744343758213,7.16139,1545.1,1545.0,9.99e-06]
[1744343758414,6.51339,1545.1,1545.0,9.99e-06]
[1744343760119,7.16139,1545.1,1545.0,9.99e-06]
[1744343760317,6.51339,1545.1,1545.0,9.99e-06]
[1744343761020,7.16139,1545.1,1545.0,9.99e-06]
[1744343761413,6.51339,1545.1,1545.0,9.99e-06]
[1744343761621,15.36919,1545.1,1545.0,9.99e-06]
[1744343763724,10.89470168,1545.1,1545.0,9.99e-06]
[1744343764926,10.36919,1545.1,1545.0,9.99e-06]
[1744343765126,5.15109,1545.1,1545.0,9.99e-06]
[1744343765318,9.98109,1545.1,1545.0,9.99e-06]
[1744343765719,6.77329,1545.1,1545.0,2.54230999]
[1744343766829,6.77329,1545.1,1545.0,9.99e-06]
[1744343767331,9.18959,1545.1,1545.0,9.99e-06]
[1744343773127,9.83759,1545.1,1545.0,9.99e-06]
[1744343773729,3.23875,1544.9,1544.4,9.47094761]
[1744343773933,1.29588,1544.4,1544.3,11.54124388]
[1744343774227,1.29596,1544.3,1544.2,16.44573615]
[1744343774434,7.99696,1544.3,1544.2,16.44573615]
[1744343774630,7.99696,1544.3,1544.2,15.25706615]
[1744343775133,12.99696,1544.3,1544.2,10.72232615]
[1744343775333,7.99696,1544.3,1544.2,10.72232615]
[1744343775527,7.99696,1544.3,1544.2,9.51958615]
[1744343775831,7.99696,1544.3,1544.2,6.17726615]
[1744343776129,12.99696,1544.3,1544.2,1.91536615]
[1744343776433,7.99696,1544.3,1544.2,1.91536615]
[1744343776735,12.68096,1544.3,1544.2,1.91536615]
[1744343776939,1.29604,1544.2,1544.1,2.36040999]
[1744343777135,3.65664,1544.2,1544.1,2.36040999]
[1744343778327,6.86444,1544.2,1544.1,2.36040999]
[1744343778525,6.86444,1544.2,1544.1,0.00970999]
[1744343781128,6.86444,1544.2,1544.1,9.99e-06]
[1744343781330,11.86444,1544.2,1544.1,9.99e-06]
[1744343781836,12.39608265,1544.2,1544.1,9.99e-06]
[1744343782032,1.29663,1543.5,1543.4,5.2211]
[1744343782242,5.98263,1543.5,1543.4,2.0133]
[1744343782538,5.98263,1543.5,1543.4,7.0133]
[1744343783437,5.98263,1543.5,1543.4,12.7963]
[1744343783644,5.98263,1543.5,1543.4,4.5885]
[1744343784439,5.98263,1543.5,1543.4,2.5752]
[1744343788043,8.43983,1543.5,1543.4,2.5752]
[1744343792949,9.08783,1543.5,1543.4,2.5752]
[1744343793740,6.63063,1543.5,1543.4,2.5752]
[1744343793947,5.98263,1543.5,1543.4,2.5752]
[1744343796847,8.47353,1543.5,1543.4,2.5752]
[1744343798854,1.29672,1543.4,1543.3,2.08710999]
[1744343799060,3.78762,1543.4,1543.3,2.08710999]
[1744343799254,3.78762,1543.4,1543.3,4.65360999]
[1744343799957,3.78762,1543.4,1543.3,0.00970999]
[1744343801263,3.78762,1543.4,1543.3,2.44760999]
[1744343804565,1.29672,1543.4,1543.3,2.44760999]
[1744343805564,4.689,1543.4,1543.3,7.44760999]
[1744343805959,5.98572,1543.4,1543.3,7.44760999]
[1744343806168,5.98572,1543.4,1543.3,2.44760999]
[1744343808355,8.14632,1543.4,1543.3,2.44760999]
[1744343808767,10.59032,1543.4,1543.3,2.44760999]
[1744343809270,10.59032,1543.4,1543.3,0.00970999]
[1744343812871,11.23832,1543.4,1543.3,0.00970999]
[1744343821575,11.23832,1543.4,1543.3,9.99e-06]
[1744343821877,16.23832,1543.4,1543.3,9.99e-06]
[1744343824280,11.23832,1543.4,1543.3,9.99e-06]
[1744343825173,6.63372,1543.4,1543.3,9.99e-06]
[1744343825369,21.4850075,1543.4,1543.3,9.99e-06]
[1744343825771,1.29714,1542.9,1542.8,5.6078]
[1744343825975,1.29714,1542.9,1542.8,5.59468772]
[1744343826174,1.29714,1542.9,1542.8,10.59468772]
[1744343827177,1.29714,1542.9,1542.8,5.59468772]
[1744343827779,4.69,1543.0,1542.8,10.59468772]
[1744343827780,5.98712,1543.0,1542.8,10.59468772]
[1744343827976,5.97400772,1543.0,1542.9,2.1776]
[1744343828677,5.97400772,1543.0,1542.9,7.1776]
[1744343828980,5.97400772,1543.0,1542.9,2.1776]
[1744343829181,5.97400772,1543.0,1542.9,4.5396]
[1744343832292,1.29722,1542.8,1542.7,0.00970999]
[1744343832584,1.29722,1542.8,1542.7,2.36559771]
[1744343834076,1.29722,1542.8,1542.7,4.48629771]
[1744343834474,3.2078,1542.9,1542.7,4.48629771]
[1744343834475,1.29719,1542.9,1542.7,9.48629771]
[1744343834673,5.97399772,1543.0,1542.8,3.2078]
[1744343834874,5.96088544,1543.0,1542.8,3.2078]
[1744343835281,1.29714,1542.9,1542.8,3.2078]
[1744343835485,12.32692805,1543.2,1542.8,15.48389772]
[1744343835679,1.28389772,1543.1,1543.0,3.2078]
[1744343836481,1.28389772,1543.1,1543.0,8.2078]
[1744343836687,7.63792805,1543.2,1543.0,15.49683]
[1744343836880,7.63792805,1543.2,1543.1,2.482]
[1744343837389,8.93480805,1543.2,1543.1,7.482]
[1744343838595,1.29688,1543.2,1543.1,7.482]
[1744343838887,1.29688,1543.2,1543.1,2.482]
[1744343839078,1.29688,1543.2,1543.1,4.6685]
[1744343839882,8.93476805,1543.3,1543.1,4.6685]
[1744343840186,8.93476805,1543.3,1543.2,2.484]
[1744343842291,11.51766805,1543.3,1543.2,2.484]
[1744343842588,1.29688,1543.2,1543.1,2.1865]
[1744343842789,3.87978,1543.2,1543.1,2.1865]
[1744343843790,1.29697,1543.1,1543.0,11.6583]
[1744343843993,5.92187,1543.1,1543.0,11.6583]
[1744343844690,5.92187,1543.1,1543.0,5.6663]
[1744343845594,10.1383,1543.4,1543.0,5.6663]
[1744343845784,10.17812805,1543.3,1543.1,2.5464]
[1744343845983,10.17812805,1543.3,1543.2,2.2243]
[1744343845984,11.47492805,1543.3,1543.2,2.2243]
[1744343846784,11.47492805,1543.3,1543.2,4.7707]
[1744343849688,1.29697,1543.1,1543.0,3.2078]
[1744343850795,1.29697,1543.1,1543.0,5.7285]
[1744343851497,1.29687,1543.3,1543.0,12.02555]
[1744343851697,1.29687,1543.3,1543.1,2.5241]
[1744343851898,1.29688,1543.2,1543.1,2.5241]
[1744343852595,7.63792805,1543.4,1543.2,1.29686]
[1744343852791,7.63792805,1543.4,1543.3,7.0287]
[1744343853192,7.63792805,1543.4,1543.3,12.0287]
[1744343853796,7.63792805,1543.4,1543.3,12.55583468]
[1744343853999,7.63792805,1543.4,1543.3,12.0287]
[1744343854191,7.63792805,1543.4,1543.3,18.54781567]
[1744343854497,7.63792805,1543.4,1543.3,18.0207]
[1744343854902,7.63792805,1543.4,1543.3,18.54783518]
[1744343855100,7.63792805,1543.4,1543.3,18.0207]
[1744343856103,7.63792805,1543.4,1543.3,22.7087]
[1744343857590,7.63792805,1543.4,1543.3,18.0207]
[1744343860201,0.00970999,1543.6,1543.5,1.29663]
[1744343860402,0.00970999,1543.6,1543.5,10.49643]
[1744343861702,0.00970999,1543.6,1543.5,15.49643]
[1744343862006,0.00970999,1543.6,1543.5,20.18343]
[1744343862397,0.00970999,1543.6,1543.5,22.57383]
[1744343864102,2.3916,1544.0,1543.9,1.2963]
[1744343864297,2.1763,1544.1,1544.0,1.29621]
[1744343864501,2.1763,1544.1,1544.0,3.70491]
[1744343864704,4.7206,1544.1,1544.0,3.70491]
[1744343865106,11.92492805,1544.3,1544.2,1.29604]
[1744343865303,1.30574999,1544.2,1544.1,3.2078]
[1744343865502,0.00970999,1544.2,1544.1,4.50393]
[1744343866506,2.55400999,1544.2,1544.1,4.50393]
[1744343866706,2.55400999,1544.2,1544.1,6.87573]
[1744343867607,0.00970999,1544.2,1544.1,6.87573]
[1744343869008,0.00970999,1544.2,1544.1,9.13013]
[1744343869207,2.40400999,1544.2,1544.1,9.13013]
[1744343869398,0.00970999,1544.2,1544.1,9.13013]
[1744343870307,2.59660999,1544.2,1544.1,9.13013]
[1744343871210,2.59660999,1544.2,1544.1,15.12213]
[1744343872802,4.82590999,1544.2,1544.1,15.12213]
[1744343874104,0.00970999,1544.2,1544.1,20.12213]
[1744343874309,6.7865,1544.6,1544.5,1.29579]
[1744343874513,6.7865,1544.6,1544.5,4.50359]
[1744343875710,13.08221,1544.6,1544.4,7.29751999]
[1744343875912,2.3807,1544.5,1544.4,7.29751999]
[1744343876509,3.67649,1544.5,1544.4,7.29751999]
[1744343876705,8.67649,1544.5,1544.4,6.00170999]
[1744343877212,7.3807,1544.5,1544.4,7.29758999]
[1744343878109,2.3807,1544.5,1544.4,7.29758999]
[1744343879710,0.00970999,1544.7,1544.5,1.29576]
[1744343880013,2.5166,1544.6,1544.5,3.2078]
[1744343880716,2.5166,1544.6,1544.5,4.50359]
[1744343881416,2.5166,1544.6,1544.5,6.97889]
[1744343882113,2.5166,1544.6,1544.5,4.50359]
[1744343882704,3.81231,1544.6,1544.5,3.2078]
[1744343882903,3.81231,1544.6,1544.4,7.29751999]
[1744343883115,2.4918,1544.5,1544.4,7.29751999]
[1744343884509,2.4918,1544.5,1544.4,6.00170999]
[1744343885415,8.78759,1544.5,1544.4,6.00170999]
[1744343885820,3.78759,1544.5,1544.4,0.00970999]
[1744343886522,7.1748,1544.5,1544.4,0.00970999]
[1744343887421,8.47059,1544.5,1544.4,0.00970999]
[1744343892519,2.4918,1544.5,1544.4,0.00970999]
[1744343892720,8.92000999,1544.7,1544.4,1.30558999]
[1744343892920,2.4224,1544.6,1544.4,4.59940999]
[1744343893119,1.29579,1544.5,1544.4,4.59940999]
[1744343893320,2.4224,1544.6,1544.4,4.59940999]
[1744343893621,1.29579,1544.5,1544.4,4.59940999]
[1744343894414,3.71815,1544.6,1544.4,5.89527999]
[1744343895022,2.4224,1544.6,1544.4,5.89527999]
[1744343895225,3.71812,1544.6,1544.4,4.59940999]
[1744343895423,3.71817,1544.6,1544.4,4.59940999]
[1744343895624,2.505,1544.5,1544.4,4.59940999]
[1744343896227,10.21565999,1544.7,1544.4,5.89528999]
[1744343896526,2.08520999,1544.7,1544.6,1.29571]
[1744343896718,2.08520999,1544.7,1544.5,7.07954]
[1744343896914,3.38083999,1544.7,1544.6,2.576]
[1744343897120,5.82400999,1544.7,1544.5,5.6199]
[1744343897428,5.83601,1544.6,1544.5,3.2078]
[1744343898425,4.5403,1544.6,1544.5,3.2078]
[1744343898629,4.5403,1544.6,1544.5,5.6199]
[1744343900117,1.29579,1544.5,1544.4,6.00170999]
[1744343900330,3.76909,1544.5,1544.4,6.00170999]
[1744343901830,3.76909,1544.5,1544.4,0.00970999]
[1744343906431,2.4733,1544.5,1544.4,0.00970999]
[1744343907131,3.76909,1544.5,1544.4,0.00970999]
[1744343908032,2.4733,1544.5,1544.4,0.00970999]
[1744343908234,3.76909,1544.5,1544.4,0.00970999]
[1744343909028,8.76909,1544.5,1544.4,0.00970999]
[1744343909532,3.76909,1544.5,1544.4,0.00970999]
[1744343911440,11.40701805,1544.5,1544.4,0.00970999]
[1744343913236,10.11122805,1544.5,1544.4,0.00970999]
[1744343913429,10.11122805,1544.5,1544.4,1.30558999]
[1744343913941,10.11122805,1544.5,1544.4,3.92858999]
[1744343914635,10.11122805,1544.5,1544.4,2.63270999]
[1744343915135,11.40701805,1544.5,1544.4,2.63270999]
[1744343915937,11.40701805,1544.5,1544.4,0.00970999]
[1744343920537,3.76909,1544.5,1544.4,0.00970999]
[1744343921344,2.4733,1544.5,1544.4,0.00970999]
[1744343921542,2.4733,1544.5,1544.4,2.69190999]
[1744343922045,18.8495675,1544.6,1544.4,2.69190999]
[1744343922235,21.4806675,1544.6,1544.4,2.69190999]
[1744343924146,1.29579,1544.5,1544.4,2.69190999]
[1744343925840,3.98229,1544.5,1544.4,2.69190999]
[1744343926938,2.6865,1544.5,1544.4,2.69190999]
[1744343927146,3.98229,1544.5,1544.4,2.69190999]
[1744343928540,11.62167845,1544.5,1544.4,2.69190999]
[1744343929855,11.62167845,1544.5,1544.4,0.00970999]
[1744343931450,3.98229,1544.5,1544.4,0.00970999]
[1744343932841,4.63029,1544.5,1544.4,0.00970999]
[1744343933551,9.63029,1544.5,1544.4,0.00970999]
[1744343934843,19.7588775,1544.5,1544.4,0.00970999]
[1744343935545,19.7588775,1544.5,1544.4,9.99e-06]
[1744343938242,14.7588775,1544.5,1544.4,9.99e-06]
[1744343938547,19.7588775,1544.5,1544.4,9.99e-06]
[1744343939850,9.63029,1544.5,1544.4,9.99e-06]
[1744343940548,4.63029,1544.5,1544.4,9.99e-06]
[1744343942052,3.98229,1544.5,1544.4,9.99e-06]
[1744343943049,17.34926512,1544.5,1544.4,9.99e-06]
[1744343943454,16.70126512,1544.5,1544.4,9.99e-06]
[1744343943857,14.01476512,1544.5,1544.4,9.99e-06]
[1744343945052,16.52036512,1544.5,1544.4,9.99e-06]
[1744343946954,14.01476512,1544.5,1544.4,9.99e-06]
[1744343947859,1.29579,1544.5,1544.4,9.99e-06]
[1744343951260,6.21979,1544.5,1544.4,9.99e-06]
[1744343954763,16.39746101,1544.5,1544.4,9.99e-06]
[1744343954962,11.47346101,1544.5,1544.4,9.99e-06]
[1744343958159,10.17767101,1544.5,1544.4,6.29588999]
[1744343959066,10.17767101,1544.5,1544.4,9.50368999]
[1744343959457,10.17767101,1544.5,1544.4,12.01798999]
[1744343959868,11.483011,1544.7,1544.6,1.29571]
[1744343960162,10.187381,1544.7,1544.6,4.50351]
[1744343960563,10.187381,1544.7,1544.6,7.01781]
[1744343962164,11.483011,1544.7,1544.6,5.7221]
[1744343964468,1.30533999,1544.7,1544.6,5.7221]
[1744343965065,0.00970999,1544.7,1544.6,7.01781]
[1744343972985,0.00970999,1544.7,1544.6,3.81001]
[1744343973176,0.00970999,1544.7,1544.6,7.01781]
[1744343974486,0.00970999,1544.7,1544.6,4.50351]
[1744343974786,2.55880999,1544.7,1544.6,4.50351]
[1744343974992,2.55880999,1544.7,1544.6,7.24801]
[1744343975493,3.85443999,1544.7,1544.6,5.9523]
[1744343975992,2.55880999,1544.7,1544.6,7.24801]
[1744343979392,2.55880999,1544.7,1544.6,4.04021]
[1744343979593,0.00970999,1544.7,1544.6,7.24801]
[1744343981097,1.30533999,1544.7,1544.6,5.9523]
[1744343981299,2.55740999,1544.7,1544.6,5.9523]
[1744343981597,2.55740999,1544.7,1544.6,7.24801]
[1744343981598,4.70220999,1544.7,1544.6,7.24801]
[1744343982588,4.70220999,1544.7,1544.6,5.9523]
[1744343983898,4.70220999,1544.7,1544.6,7.24801]
[1744343985501,12.29635741,1545.0,1544.8,1.29548]
[1744343985692,17.02465741,1545.0,1544.9,2.3306]
[1744343985893,18.32002741,1545.0,1544.9,4.9282]
[1744343988894,10.69567,1545.0,1544.9,4.9282]
[1744343989803,10.69567,1545.0,1544.8,3.2078]
[1744343990107,2.613,1544.9,1544.8,4.50334]
[1744343990300,2.613,1544.9,1544.8,6.98364]
[1744343990505,4.786,1545.0,1544.8,9.17244]
[1744343990706,4.786,1545.0,1544.9,2.4803]
[1744343995002,6.08137,1545.0,1544.9,2.4803]
[1744343995305,0.00970999,1545.1,1545.0,1.29537]
[1744343995501,0.00970999,1545.1,1545.0,5.3471]
[1744343995900,2.74450999,1545.1,1545.0,8.0415]
[1744343996108,4.03979999,1545.1,1545.0,8.0415]
[1744343996804,2.74450999,1545.1,1545.0,8.0415]
[1744343997004,4.03979999,1545.1,1545.0,8.0415]
[1744343997396,2.74450999,1545.1,1545.0,8.0415]
[1744343997599,4.03979999,1545.1,1545.0,3.2078]
[1744343997999,1.29538,1545.0,1544.8,5.3966]
[1744343998202,10.88038,1545.0,1544.8,8.1138]
[1744343998397,2.2873,1544.9,1544.8,8.1138]
[1744343998602,4.9082,1544.9,1544.8,8.1138]
[1744343999010,6.20366,1544.9,1544.8,3.2078]
[1744344001515,8.25955,1545.0,1544.8,3.2078]
[1744344001708,1.29546,1544.9,1544.8,8.0094]
[1744344001902,1.29546,1544.9,1544.8,3.2078]
[1744344002106,1.29563,1544.7,1544.6,3.2078]
[1744344002708,15.5654,1545.0,1544.6,3.2078]
[1744344003001,1.29555,1544.8,1544.6,3.2078]
[1744344003211,1.29555,1544.8,1544.7,2.187]
[1744344003607,4.0248,1544.9,1544.7,2.187]
[1744344003812,4.0248,1544.9,1544.7,4.3369]
[1744344004015,1.30501999,1545.1,1544.8,4.50328]
[1744344004214,0.00970999,1545.1,1544.8,3.2078]
[1744344004417,1.29554,1544.8,1544.7,4.3369]
[1744344004617,1.29554,1544.8,1544.7,2.187]
[1744344005310,3.92064,1544.8,1544.7,2.187]
[1744344005709,2.6251,1544.8,1544.7,2.187]
[1744344007320,11.47318101,1544.9,1544.7,2.187]
[1744344008014,1.29554,1544.8,1544.7,2.187]
[1744344009423,11.46346638,1544.9,1544.7,3.48259]
[1744344009614,11.46346638,1544.9,1544.8,3.2078]
[1744344010009,7.63545638,1544.9,1544.8,3.2078]
[1744344010322,7.63545638,1544.9,1544.8,4.50334]
[1744344010513,8.93091638,1544.9,1544.8,3.2078]
[1744344011120,1.29554,1544.8,1544.7,2.187]
[1744344011312,4.03834,1544.8,1544.7,2.187]
[1744344011822,1.29563,1544.7,1544.6,3.2078]
[1744344012126,8.55443,1544.7,1544.6,3.2078]
[1744344012422,7.2588,1544.7,1544.6,3.2078]
[1744344013017,5.314,1544.8,1544.6,4.50348]
[1744344013318,4.666,1544.8,1544.7,2.1715]
[1744344013514,4.666,1544.8,1544.7,4.314]
[1744344013713,7.63545638,1544.9,1544.8,1.29554]
[1744344013917,7.63545638,1544.9,1544.8,3.2078]
[1744344014224,7.63545638,1544.9,1544.8,4.50334]
[1744344017621,2.34900999,1545.1,1545.0,1.29537]
[1744344017821,3.64429999,1545.1,1545.0,3.2078]
[1744344018022,4.93310999,1545.1,1545.0,4.50317]
[1744344018224,4.93310999,1545.1,1545.0,6.84037]
[1744344018523,6.22839999,1545.1,1545.0,5.545]
[1744344018727,4.93310999,1545.1,1545.0,6.84037]
[1744344018928,6.22839999,1545.1,1545.0,6.84037]
[1744344019221,4.93310999,1545.1,1545.0,6.84037]
[1744344020525,4.93310999,1545.1,1545.0,9.47307]
[1744344021425,4.93310999,1545.1,1545.0,5.545]
[1744344021616,4.93310999,1545.1,1545.0,6.84037]
[1744344022125,0.00970999,1545.1,1545.0,6.84037]
[1744344022329,0.00970999,1545.1,1545.0,9.45127]
[1744344023026,2.49820999,1545.1,1545.0,9.45127]
[1744344023429,3.79349999,1545.1,1545.0,3.2078]
[1744344023633,3.79349999,1545.1,1544.9,1.29543]
[1744344023824,8.28908,1545.0,1544.8,4.50329]
[1744344024125,2.4885,1544.9,1544.8,4.50329]
[1744344024330,2.4885,1544.9,1544.8,7.11419]
[1744344024631,4.5052,1545.0,1544.9,1.29546]
[1744344024821,7.2351,1545.0,1544.9,1.29546]
[1744344025123,7.2351,1545.0,1544.8,9.2587]
[1744344025631,2.7299,1544.9,1544.8,9.2587]
[1744344028733,4.5052,1545.0,1544.9,1.29546]
[1744344028928,4.5052,1545.0,1544.9,4.03786]
[1744344029431,5.80057,1545.0,1544.9,4.03786]
[1744344029624,4.9299,1545.0,1544.9,4.03786]
[1744344030127,8.94051637,1545.1,1544.9,4.03786]
[1744344030334,13.96341637,1545.1,1545.0,8.1866]
[1744344030725,13.96341637,1545.1,1545.0,9.48197]
[1744344030933,12.66806637,1545.1,1545.0,9.48197]
[1744344031333,13.96335637,1545.1,1545.0,3.2078]
[1744344031530,6.32789999,1545.1,1545.0,3.2078]
[1744344032528,5.03260999,1545.1,1545.0,4.50317]
[1744344033520,5.03260999,1545.1,1545.0,3.2078]
[1744344033924,5.03260999,1545.1,1544.8,5.3523]
[1744344034128,2.6395,1545.0,1544.8,3.2078]
[1744344034331,2.6395,1545.0,1544.8,6.98611]
[1744344034621,2.6395,1545.0,1544.9,1.29546]
[1744344034826,2.20800999,1545.1,1545.0,1.29537]
[1744344035037,2.20800999,1545.1,1545.0,9.14377]
[1744344035227,3.50329999,1545.1,1545.0,3.2078]
[1744344035532,4.84750999,1545.1,1545.0,3.2078]
[1744344035933,4.84750999,1545.1,1545.0,5.6906]
[1744344036332,6.14279999,1545.1,1545.0,5.6906]
[1744344037037,6.14279999,1545.1,1545.0,3.2078]
[1744344037729,1.29544,1545.0,1544.8,7.8502]
[1744344037929,2.226,1544.9,1544.8,7.8502]
[1744344038125,2.3338,1544.9,1544.8,7.8502]
[1744344038327,2.3338,1544.9,1544.8,9.14574]
[1744344038528,2.6757,1545.0,1544.8,9.14574]
[1744344038822,6.30487,1545.0,1544.9,2.4846]
[1744344039835,9.6695,1545.0,1544.9,2.4846]
[1744344040031,4.66,1545.0,1544.9,3.78006]
[1744344040232,4.66,1545.0,1544.9,5.99966]
[1744344041233,4.66,1545.0,1544.9,4.7042]
[1744344041737,1.29537,1545.0,1544.9,4.7042]
[1744344042134,11.52798637,1545.1,1544.9,5.99962]
[1744344042437,7.64516637,1545.1,1545.0,7.94960185]
[1744344043437,0.00970999,1545.1,1545.0,7.94960185]
[1744344045240,0.00970999,1545.1,1545.0,13.4753606]
[1744344046532,0.00970999,1545.1,1545.0,13.47412419]
[1744344047138,9.99e-06,1545.1,1545.0,18.13312419]
[1744344047644,12.43335638,1545.7,1545.3,3.23774]
[1744344047839,7.63545638,1545.7,1545.6,4.50267]
[1744344048336,7.63545638,1545.7,1545.6,7.00337]
[1744344050541,7.63545638,1545.7,1545.6,12.00337]
[1744344051042,0.36684638,1545.7,1545.6,17.99537]
[1744344051236,6.38e-06,1545.7,1545.6,17.99537]
[1744344051431,9.02200738,1545.8,1545.7,1.29479]
[1744344051638,7.28376738,1545.8,1545.7,8.43769]
[1744344051841,4.27066738,1545.8,1545.7,15.69269]
[1744344052044,4.27066738,1545.8,1545.7,16.51496397]
[1744344052045,0.00970999,1545.8,1545.7,16.51496397]
[1744344052244,9.99e-06,1545.8,1545.7,16.51496397]
[1744344053649,9.99e-06,1545.8,1545.7,16.51238635]
[1744344054046,6.39709655,1546.2,1546.1,4.50225]
[1744344054251,6.39709655,1546.2,1546.1,15.14625]
[1744344054845,6.39709655,1546.2,1546.1,17.66805]
[1744344055241,6.39709655,1546.2,1546.1,13.01605]
[1744344055442,11.39709655,1546.2,1546.1,3.2078]
[1744344055641,9.01309655,1546.2,1546.1,3.2078]
[1744344055945,9.01309655,1546.2,1546.1,4.50225]
[1744344056151,3.91037,1546.2,1546.1,3.2078]
[1744344056337,2.616,1546.2,1546.1,4.50225]
[1744344056541,8.91037,1546.2,1546.1,3.2078]
[1744344056743,2.616,1546.2,1546.1,4.50225]
[1744344058448,2.616,1546.2,1546.1,7.06545]
[1744344059249,2.616,1546.2,1546.1,4.50225]
[1744344062746,8.91037,1546.2,1546.1,3.2078]
[1744344068166,1.2945,1546.1,1546.0,3.2078]
[1744344068364,8.315,1546.1,1546.0,3.2078]
[1744344068554,13.315,1546.1,1546.0,3.2078]
[1744344068749,1.29459,1546.0,1545.7,10.49453]
[1744344068948,1.2947,1545.8,1545.7,3.2078]
[1744344069155,1.29487,1545.6,1545.5,0.00970999]
[1744344069354,5.94587,1545.6,1545.5,0.00970999]
[1744344069556,4.651,1545.6,1545.5,0.00970999]
[1744344069859,4.651,1545.6,1545.5,1.30465999]
[1744344070059,7.2339,1545.6,1545.5,1.30465999]
[1744344070355,2.5829,1545.6,1545.5,0.00970999]
[1744344070769,3.87777,1545.6,1545.5,0.00970999]
[1744344076675,3.87777,1545.6,1545.5,1.30465999]
[1744344076874,2.5829,1545.6,1545.5,1.30465999]
[1744344077075,2.5829,1545.6,1545.5,3.86795999]
[1744344077477,9.1672,1545.8,1545.5,2.57300999]
[1744344077678,10.46208,1545.8,1545.7,3.2078]
[1744344077881,5.81108,1545.8,1545.7,3.2078]
[1744344078077,5.94669,1546.0,1545.8,1.29477]
[1744344078274,4.4644,1546.0,1545.9,3.2078]
[1744344078580,4.4644,1546.0,1545.9,4.50255]
[1744344079272,7.1185,1546.0,1545.9,4.50255]
[1744344080477,4.652,1546.2,1546.0,1.29462]
[1744344080674,6.7962,1546.2,1546.1,4.50238]
[1744344080980,2.3206,1546.3,1546.2,1.2945]
[1744344081183,2.3206,1546.3,1546.2,3.8634]
[1744344081382,4.9528,1546.3,1546.2,3.8634]
[1744344081874,2.6419,1546.3,1546.2,3.8634]
[1744344083077,2.6419,1546.3,1546.2,1.2945]
[1744344084082,2.6419,1546.3,1546.2,3.7699]
[1744344085586,0.0097,1546.3,1546.2,3.7699]
[1744344086987,2.701,1546.3,1546.2,3.7699]
[1744344088878,3.99541,1546.3,1546.2,3.7699]
[1744344089085,3.99541,1546.3,1546.2,2.4754]
[1744344089377,1.2945,1546.2,1546.1,3.2078]
[1744344089581,11.21992,1546.2,1545.7,9.1998]
[1744344089882,1.29483,1545.8,1545.7,3.2078]
[1744344090087,1.295,1545.6,1545.5,28.51752938]
[1744344090289,6.07078,1545.7,1545.5,28.51752938]
[1744344090487,3.8974,1545.6,1545.5,28.51752938]
[1744344090691,2.6024,1545.6,1545.5,28.51752938]
[1744344090983,3.8974,1545.6,1545.5,25.30972938]
[1744344091174,3.8974,1545.6,1545.5,20.09849685]
[1744344092993,9.5446,1545.6,1545.5,20.09849685]
[1744344093292,3.8974,1545.6,1545.5,20.09849685]
[1744344093492,4.5446,1545.6,1545.5,20.09849685]
[1744344093693,7.7524,1545.6,1545.5,20.09849685]
[1744344093894,4.5446,1545.6,1545.5,20.09849685]
[1744344095499,4.5446,1545.6,1545.5,0.00970999]
[1744344097598,4.5446,1545.6,1545.5,3.21750999]
[1744344097798,3.8974,1545.6,1545.5,3.21750999]
[1744344098000,3.8974,1545.6,1545.5,5.75660999]
[1744344098798,3.8974,1545.6,1545.5,3.21750999]
[1744344099887,4.646,1545.8,1545.5,4.51256999]
[1744344100100,1.29492,1545.7,1545.6,2.5391]
[1744344100603,3.91602,1545.7,1545.6,2.5391]
[1744344101293,1.295,1545.6,1545.5,5.40850999]
[1744344101491,4.0408,1545.6,1545.5,7.98610999]
[1744344102305,2.7458,1545.6,1545.5,7.98610999]
[1744344102797,4.04079,1545.6,1545.5,7.98610999]
[1744344103004,1.29499,1545.6,1545.5,3.21750999]
[1744344103188,1.29499,1545.6,1545.5,0.00970999]
[1744344103697,6.16589,1545.6,1545.5,0.00970999]
[1744344108008,11.16589,1545.6,1545.5,0.00970999]
[1744344108707,14.37369,1545.6,1545.5,0.00970999]
[1744344109403,3.23786,1545.5,1544.9,13.25042403]
[1744344109600,1.2955,1545.0,1544.8,15.06393605]
[1744344109800,12.94689,1544.9,1544.8,13.48877605]
[1744344110203,17.94689,1544.9,1544.8,13.48877605]
[1744344110602,1.29567,1544.8,1544.7,10.04353386]
[1744344110802,1.29575,1544.7,1544.6,13.48877605]
[1744344111112,1.29584,1544.6,1544.5,20.08878686]
[1744344111411,11.82154,1544.6,1544.5,20.08878686]
[1744344111612,16.82154,1544.6,1544.5,20.08878686]
[1744344112505,8.61374,1544.6,1544.5,20.08878686]
[1744344112704,11.82154,1544.6,1544.5,20.08878686]
[1744344112905,16.82154,1544.6,1544.5,18.85885686]
[1744344113106,17.46954,1544.6,1544.5,17.68852686]
[1744344113610,9.26174,1544.6,1544.5,17.68852686]
[1744344115409,1.29592,1544.5,1544.4,2.49330999]
[1744344115808,3.78212,1544.5,1544.4,2.49330999]
[1744344117717,3.78212,1544.5,1544.4,0.00970999]
[1744344120719,3.78212,1544.5,1544.4,2.57240999]
[1744344121621,6.58786,1544.6,1544.4,2.57240999]
[1744344121817,4.644,1544.6,1544.5,3.2078]
[1744344122121,4.644,1544.6,1544.5,8.94162]
[1744344122322,5.94171,1544.8,1544.5,16.55422]
[1744344122614,5.94171,1544.8,1544.7,3.2078]
[1744344123615,4.646,1544.8,1544.7,9.50355]
[1744344123916,5.95122999,1545.0,1544.7,9.5035]
[1744344124122,5.95122999,1545.0,1544.9,3.2078]
[1744344126222,1.29559,1544.9,1544.8,2.6126]